[Event "Titled Tuesday Blitz April 05 Early 2022"]
[White "Harshavardhan G B"]
[Black "Lamaze, Simon"]
[WhiteFideId "25059009"]
[BlackFideId "36069264"]
[WhiteElo "1831"]
[BlackElo "1999"]
[Result "1-0"]
[Round "03"]
[TimeControl "180+1"]
[Date "2022.04.05"]
[WhiteClock "0:00:24"]
[BlackClock "0:00:19"]

1. Nf3 {[%clk 0:03:00]}  c5 {[%clk 0:02:21]} 2. e4 {[%clk 0:03:00]}  Nc6 {[%clk 0:02:20]} 3. d4 {[%clk 0:02:59]}  cxd4 {[%clk 0:02:21]} 4. Nxd4 {[%clk 0:03:00]}  Nf6 {[%clk 0:02:21]} 5. Nc3 {[%clk 0:02:59]}  d6 {[%clk 0:02:22]} 6. Bg5 {[%clk 0:02:58]}  Bd7 {[%clk 0:02:21]} 7. Qd2 {[%clk 0:02:56]}  a6 {[%clk 0:02:20]} 8. O-O-O {[%clk 0:02:53]}  e6 {[%clk 0:02:20]} 9. f3 {[%clk 0:02:52]}  Be7 {[%clk 0:02:17]} 10. Kb1 {[%clk 0:02:50]}  h6 {[%clk 0:02:16]} 11. Be3 {[%clk 0:02:49]}  Rc8 {[%clk 0:02:13]} 12. g4 {[%clk 0:02:48]}  b5 {[%clk 0:02:10]} 13. h4 {[%clk 0:02:32]}  Ne5 {[%clk 0:02:09]} 14. Qg2 {[%clk 0:02:15]}  g6 {[%clk 0:02:03]} 15. g5 {[%clk 0:02:08]}  hxg5 {[%clk 0:02:04]} 16. hxg5 {[%clk 0:02:09]}  Rxh1 {[%clk 0:02:04]} 17. Qxh1 {[%clk 0:02:10]}  Nh5 {[%clk 0:02:04]} 18. f4 {[%clk 0:02:01]}  Nc4 {[%clk 0:02:04]} 19. Bxc4 {[%clk 0:01:59]}  Rxc4 {[%clk 0:02:04]} 20. f5 {[%clk 0:01:57]}  Bxg5 {[%clk 0:01:51]} 21. fxe6 {[%clk 0:01:31]}  Bxe3 {[%clk 0:01:34]} 22. exd7+ {[%clk 0:01:28]}  Qxd7 {[%clk 0:01:34]} 23. Nb3 {[%clk 0:01:28]}  Rxc3 {[%clk 0:01:20]} 24. bxc3 {[%clk 0:01:28]}  Qc6 {[%clk 0:01:21]} 25. Rd3 {[%clk 0:01:25]}  Bf4 {[%clk 0:01:19]} 26. Qf3 {[%clk 0:01:21]}  Be5 {[%clk 0:01:19]} 27. Nd4 {[%clk 0:01:14]}  Qc4 {[%clk 0:01:13]} 28. Rd1 {[%clk 0:01:13]}  b4 {[%clk 0:01:07]} 29. Qd3 {[%clk 0:01:12]}  Qxd3 {[%clk 0:01:06]} 30. Rxd3 {[%clk 0:01:10]}  Nf4 {[%clk 0:01:07]} 31. Rf3 {[%clk 0:01:02]}  g5 {[%clk 0:01:01]} 32. Nc6 {[%clk 0:00:47]}  Bxc3 {[%clk 0:01:00]} 33. a3 {[%clk 0:00:46]}  Kd7 {[%clk 0:00:32]} 34. Nxb4 {[%clk 0:00:43]}  Bxb4 {[%clk 0:00:32]} 35. axb4 {[%clk 0:00:44]}  Ke6 {[%clk 0:00:33]} 36. c4 {[%clk 0:00:39]}  Ke5 {[%clk 0:00:33]} 37. b5 {[%clk 0:00:28]}  axb5 {[%clk 0:00:19]} 38. cxb5 {[%clk 0:00:29]}  Ke6 {[%clk 0:00:20]} 39. b6 {[%clk 0:00:26]}  Kd7 {[%clk 0:00:20]} 40. Rc3 {[%clk 0:00:25]}  Ne2 {[%clk 0:00:20]} 41. Rc4 {[%clk 0:00:25]}  d5 {[%clk 0:00:19]} 42. exd5 {[%clk 0:00:24]} 1-0


[Site "https://www.chess.com"]

[Event "Titled Tuesday Blitz April 05 Early 2022"]
[White "Hartikainen, Jarmo"]
[Black "Coto Mederos, Michel"]
[WhiteFideId "503134"]
[BlackFideId "3508528"]
[WhiteElo "2084"]
[BlackElo "2427"]
[Result "0-1"]
[Round "03"]
[TimeControl "180+1"]
[Date "2022.04.05"]
[WhiteClock "0:00:50"]
[BlackClock "0:01:37"]

1. e4 {[%clk 0:03:00]}  d5 {[%clk 0:03:00]} 2. exd5 {[%clk 0:03:00]}  Qxd5 {[%clk 0:03:01]} 3. d4 {[%clk 0:03:00]}  Nf6 {[%clk 0:03:00]} 4. c4 {[%clk 0:03:00]}  Qd8 {[%clk 0:03:00]} 5. Nc3 {[%clk 0:02:59]}  Bf5 {[%clk 0:02:56]} 6. Nf3 {[%clk 0:02:59]}  e6 {[%clk 0:02:56]} 7. Bd3 {[%clk 0:02:55]}  Bxd3 {[%clk 0:02:52]} 8. Qxd3 {[%clk 0:02:56]}  Be7 {[%clk 0:02:51]} 9. O-O {[%clk 0:02:56]}  O-O {[%clk 0:02:51]} 10. h3 {[%clk 0:02:53]}  Nbd7 {[%clk 0:02:51]} 11. Bf4 {[%clk 0:02:49]}  c5 {[%clk 0:02:51]} 12. Rad1 {[%clk 0:02:48]}  cxd4 {[%clk 0:02:50]} 13. Nxd4 {[%clk 0:02:48]}  e5 {[%clk 0:02:47]} 14. Nf5 {[%clk 0:02:34]}  exf4 {[%clk 0:02:45]} 15. Rfe1 {[%clk 0:02:21]}  Bb4 {[%clk 0:02:34]} 16. a3 {[%clk 0:02:05]}  Bxc3 {[%clk 0:02:30]} 17. Qxc3 {[%clk 0:02:06]}  Re8 {[%clk 0:02:06]} 18. Rxe8+ {[%clk 0:01:55]}  Qxe8 {[%clk 0:02:07]} 19. Nd6 {[%clk 0:01:42]}  Qe5 {[%clk 0:01:55]} 20. Qxe5 {[%clk 0:01:17]}  Nxe5 {[%clk 0:01:56]} 21. c5 {[%clk 0:01:18]}  Rd8 {[%clk 0:01:47]} 22. Re1 {[%clk 0:01:03]}  Nd3 {[%clk 0:01:45]} 23. Re7 {[%clk 0:01:02]}  Nxc5 {[%clk 0:01:42]} 24. Nxb7 {[%clk 0:00:57]}  Nxb7 {[%clk 0:01:39]} 25. Rxb7 {[%clk 0:00:57]}  g5 {[%clk 0:01:37]} 26. Rxa7 {[%clk 0:00:56]}  Rd1+ {[%clk 0:01:37]} 27. Kh2 {[%clk 0:00:55]}  Rd2 {[%clk 0:01:37]} 28. b4 {[%clk 0:00:55]}  Rxf2 {[%clk 0:01:38]} 29. a4 {[%clk 0:00:54]}  f3 {[%clk 0:01:37]} 30. b5 {[%clk 0:00:50]}  Rxg2+ {[%clk 0:01:37]} 31. Kh1 {[%clk 0:00:50]}  Ne4 {[%clk 0:01:37]} 0-1


[Site "https://www.chess.com"]

[Event "Titled Tuesday Blitz April 05 Early 2022"]
[White "Heinemann, Josefine"]
[Black "Marcziter, Dmitrii"]
[WhiteFideId "12900460"]
[BlackFideId "13900765"]
[WhiteElo "2300"]
[BlackElo "2155"]
[Result "0-1"]
[Round "03"]
[TimeControl "180+1"]
[Date "2022.04.05"]
[WhiteClock "0:00:12"]
[BlackClock "0:01:18"]

1. d4 {[%clk 0:03:00]}  d5 {[%clk 0:02:56]} 2. Bf4 {[%clk 0:02:57]}  c5 {[%clk 0:02:55]} 3. e3 {[%clk 0:02:56]}  Nc6 {[%clk 0:02:55]} 4. Nd2 {[%clk 0:02:54]}  Nf6 {[%clk 0:02:50]} 5. c3 {[%clk 0:02:53]}  Qb6 {[%clk 0:02:49]} 6. Qc2 {[%clk 0:02:43]}  g5 {[%clk 0:02:45]} 7. Bxg5 {[%clk 0:02:34]}  Bg7 {[%clk 0:02:45]} 8. Ngf3 {[%clk 0:02:33]}  O-O {[%clk 0:02:44]} 9. Be2 {[%clk 0:02:31]}  Bg4 {[%clk 0:02:44]} 10. O-O {[%clk 0:02:29]}  Rac8 {[%clk 0:02:42]} 11. dxc5 {[%clk 0:02:24]}  Qxc5 {[%clk 0:02:42]} 12. Nb3 {[%clk 0:02:23]}  Qb6 {[%clk 0:02:41]} 13. h3 {[%clk 0:02:17]}  Bh5 {[%clk 0:02:41]} 14. Nbd4 {[%clk 0:02:09]}  Bg6 {[%clk 0:02:39]} 15. Qd2 {[%clk 0:02:09]}  Ne4 {[%clk 0:02:38]} 16. Qc1 {[%clk 0:02:05]}  e5 {[%clk 0:02:34]} 17. Nxc6 {[%clk 0:02:04]}  bxc6 {[%clk 0:02:33]} 18. Bh4 {[%clk 0:02:01]}  f5 {[%clk 0:02:27]} 19. Ng5 {[%clk 0:01:50]}  Rce8 {[%clk 0:02:20]} 20. Nxe4 {[%clk 0:01:50]}  fxe4 {[%clk 0:02:20]} 21. Bg3 {[%clk 0:01:45]}  a5 {[%clk 0:02:16]} 22. b3 {[%clk 0:01:40]}  a4 {[%clk 0:02:14]} 23. Qc2 {[%clk 0:01:39]}  a3 {[%clk 0:02:13]} 24. Rad1 {[%clk 0:01:39]}  Rd8 {[%clk 0:02:10]} 25. b4 {[%clk 0:01:32]}  c5 {[%clk 0:02:07]} 26. bxc5 {[%clk 0:01:30]}  Qxc5 {[%clk 0:02:08]} 27. Rb1 {[%clk 0:01:25]}  Rb8 {[%clk 0:02:05]} 28. Rb3 {[%clk 0:01:23]}  Rxb3 {[%clk 0:01:55]} 29. Qxb3 {[%clk 0:01:22]}  Rc8 {[%clk 0:01:55]} 30. Rd1 {[%clk 0:01:19]}  Bf7 {[%clk 0:01:55]} 31. Rc1 {[%clk 0:01:07]}  d4 {[%clk 0:01:54]} 32. Qa4 {[%clk 0:01:02]}  d3 {[%clk 0:01:47]} 33. Bg4 {[%clk 0:01:01]}  Rb8 {[%clk 0:01:41]} 34. Qxe4 {[%clk 0:00:58]}  d2 {[%clk 0:01:37]} 35. Rd1 {[%clk 0:00:58]}  Qxc3 {[%clk 0:01:35]} 36. Bf5 {[%clk 0:00:25]}  h6 {[%clk 0:01:32]} 37. Bg4 {[%clk 0:00:22]}  Bxa2 {[%clk 0:01:28]} 38. Qg6 {[%clk 0:00:20]}  Bf7 {[%clk 0:01:25]} 39. Qf5 {[%clk 0:00:18]}  a2 {[%clk 0:01:20]} 40. Bh5 {[%clk 0:00:14]}  Bxh5 {[%clk 0:01:19]} 41. Qxh5 {[%clk 0:00:12]}  a1=Q {[%clk 0:01:18]} 0-1


[Site "https://www.chess.com"]

[Event "Titled Tuesday Blitz April 05 Early 2022"]
[White "Hnydiuk, Aleksander"]
[Black "Jumabayev, Rinat"]
[WhiteFideId "1109057"]
[BlackFideId "13702661"]
[WhiteElo "2374"]
[BlackElo "2561"]
[Result "0-1"]
[Round "03"]
[TimeControl "180+1"]
[Date "2022.04.05"]
[WhiteClock "0:00:21"]
[BlackClock "0:00:25"]

1. Nf3 {[%clk 0:03:00]}  c5 {[%clk 0:02:59]} 2. c4 {[%clk 0:03:00]}  Nf6 {[%clk 0:02:58]} 3. g3 {[%clk 0:03:00]}  d5 {[%clk 0:02:56]} 4. d4 {[%clk 0:03:00]}  cxd4 {[%clk 0:02:55]} 5. Bg2 {[%clk 0:02:52]}  Qa5+ {[%clk 0:02:35]} 6. Nbd2 {[%clk 0:02:42]}  Nc6 {[%clk 0:02:32]} 7. O-O {[%clk 0:02:32]}  e5 {[%clk 0:02:20]} 8. cxd5 {[%clk 0:02:31]}  Qxd5 {[%clk 0:02:17]} 9. Nb3 {[%clk 0:02:11]}  Qd8 {[%clk 0:02:12]} 10. e3 {[%clk 0:02:07]}  d3 {[%clk 0:02:10]} 11. Ne1 {[%clk 0:01:43]}  Bf5 {[%clk 0:01:54]} 12. f3 {[%clk 0:01:36]}  Nb4 {[%clk 0:01:19]} 13. e4 {[%clk 0:01:32]}  Be6 {[%clk 0:01:19]} 14. Be3 {[%clk 0:01:26]}  Rc8 {[%clk 0:01:13]} 15. Rc1 {[%clk 0:01:06]}  Rxc1 {[%clk 0:01:11]} 16. Nxc1 {[%clk 0:01:04]}  Bc4 {[%clk 0:01:07]} 17. Rf2 {[%clk 0:00:54]}  Be7 {[%clk 0:00:44]} 18. a3 {[%clk 0:00:53]}  Nc6 {[%clk 0:00:41]} 19. Nexd3 {[%clk 0:00:43]}  O-O {[%clk 0:00:42]} 20. Rd2 {[%clk 0:00:43]}  Qa5 {[%clk 0:00:42]} 21. Nb3 {[%clk 0:00:39]}  Qb5 {[%clk 0:00:25]} 22. Nbc5 {[%clk 0:00:33]}  b6 {[%clk 0:00:26]} 23. a4 {[%clk 0:00:29]}  Qa5 {[%clk 0:00:26]} 24. Nb7 {[%clk 0:00:21]}  Qa6 {[%clk 0:00:25]} 0-1


[Site "https://www.chess.com"]

[Event "Titled Tuesday Blitz April 05 Early 2022"]
[White "Jaferian, Koosha"]
[Black "Melaugh, Shane"]
[WhiteFideId "12507440"]
[BlackFideId "2509580"]
[WhiteElo "2030"]
[BlackElo "1972"]
[Result "1-0"]
[Round "03"]
[TimeControl "180+1"]
[Date "2022.04.05"]
[WhiteClock "0:01:34"]
[BlackClock "0:00:37"]

1. Nf3 {[%clk 0:03:00]}  f5 {[%clk 0:02:59]} 2. b3 {[%clk 0:02:59]}  Nf6 {[%clk 0:02:55]} 3. Bb2 {[%clk 0:02:59]}  e6 {[%clk 0:02:51]} 4. g3 {[%clk 0:02:59]}  Be7 {[%clk 0:02:49]} 5. Bg2 {[%clk 0:03:00]}  O-O {[%clk 0:02:50]} 6. O-O {[%clk 0:03:00]}  d6 {[%clk 0:02:46]} 7. d4 {[%clk 0:03:00]}  Qe8 {[%clk 0:02:43]} 8. c4 {[%clk 0:03:00]}  Nbd7 {[%clk 0:02:42]} 9. Nc3 {[%clk 0:03:00]}  Qh5 {[%clk 0:02:40]} 10. e3 {[%clk 0:02:55]}  Bd8 {[%clk 0:02:30]} 11. Nd2 {[%clk 0:02:45]}  Qh6 {[%clk 0:02:28]} 12. h3 {[%clk 0:02:37]}  e5 {[%clk 0:02:28]} 13. dxe5 {[%clk 0:02:34]}  Nxe5 {[%clk 0:02:09]} 14. Nf3 {[%clk 0:02:24]}  f4 {[%clk 0:02:07]} 15. exf4 {[%clk 0:02:22]}  Nxf3+ {[%clk 0:02:07]} 16. Qxf3 {[%clk 0:02:23]}  Bxh3 {[%clk 0:02:07]} 17. Qxb7 {[%clk 0:02:19]}  Bc8 {[%clk 0:01:39]} 18. Qxa8 {[%clk 0:02:15]}  Ng4 {[%clk 0:01:39]} 19. Rfe1 {[%clk 0:02:06]}  Qh2+ {[%clk 0:01:34]} 20. Kf1 {[%clk 0:02:07]}  Bh4 {[%clk 0:01:12]} 21. Qd5+ {[%clk 0:01:57]}  Kh8 {[%clk 0:01:10]} 22. Qf7 {[%clk 0:01:49]}  Rg8 {[%clk 0:00:38]} 23. Re8 {[%clk 0:01:49]}  Nf6 {[%clk 0:00:37]} 24. Rxg8+ {[%clk 0:01:49]}  Nxg8 {[%clk 0:00:38]} 25. Nd5 {[%clk 0:01:37]}  Bf6 {[%clk 0:00:36]} 26. Nxf6 {[%clk 0:01:35]}  gxf6 {[%clk 0:00:37]} 27. Bxf6+ {[%clk 0:01:34]}  Nxf6 {[%clk 0:00:37]} 28. Qxf6+ {[%clk 0:01:34]} 1-0


[Site "https://www.chess.com"]

[Event "Titled Tuesday Blitz April 05 Early 2022"]
[White "Jain, Naveen"]
[Black "Shukhman, Anna"]
[WhiteFideId "5003970"]
[BlackFideId "54180058"]
[WhiteElo "2036"]
[BlackElo "1665"]
[Result "0-1"]
[Round "03"]
[TimeControl "180+1"]
[Date "2022.04.05"]
[WhiteClock "0:01:36"]
[BlackClock "0:02:07"]

1. e4 {[%clk 0:03:00]}  c5 {[%clk 0:02:58]} 2. Nc3 {[%clk 0:02:59]}  e6 {[%clk 0:02:57]} 3. Nf3 {[%clk 0:02:58]}  a6 {[%clk 0:02:56]} 4. a4 {[%clk 0:02:54]}  d5 {[%clk 0:02:53]} 5. exd5 {[%clk 0:02:53]}  exd5 {[%clk 0:02:53]} 6. d4 {[%clk 0:02:53]}  cxd4 {[%clk 0:02:47]} 7. Nxd4 {[%clk 0:02:51]}  Nc6 {[%clk 0:02:46]} 8. Be2 {[%clk 0:02:48]}  Nf6 {[%clk 0:02:44]} 9. Bg5 {[%clk 0:02:47]}  Be7 {[%clk 0:02:44]} 10. O-O {[%clk 0:02:44]}  O-O {[%clk 0:02:43]} 11. h3 {[%clk 0:02:43]}  h6 {[%clk 0:02:42]} 12. Bh4 {[%clk 0:02:43]}  Re8 {[%clk 0:02:39]} 13. Nxc6 {[%clk 0:02:25]}  bxc6 {[%clk 0:02:37]} 14. Bg3 {[%clk 0:02:23]}  Bd6 {[%clk 0:02:33]} 15. Bf3 {[%clk 0:02:22]}  Bxg3 {[%clk 0:02:31]} 16. fxg3 {[%clk 0:02:21]}  Qb6+ {[%clk 0:02:31]} 17. Kh2 {[%clk 0:02:20]}  Qxb2 {[%clk 0:02:30]} 18. Nxd5 {[%clk 0:02:08]}  cxd5 {[%clk 0:02:27]} 19. Bxd5 {[%clk 0:02:07]}  Nxd5 {[%clk 0:02:25]} 20. Qxd5 {[%clk 0:02:07]}  Be6 {[%clk 0:02:25]} 21. Qe4 {[%clk 0:02:00]}  Bxh3 {[%clk 0:02:17]} 22. Qc4 {[%clk 0:01:55]}  Be6 {[%clk 0:02:12]} 23. Qc7 {[%clk 0:01:53]}  Rac8 {[%clk 0:02:11]} 24. Qa7 {[%clk 0:01:50]}  Rxc2 {[%clk 0:02:09]} 25. Qxa6 {[%clk 0:01:37]}  Rxg2+ {[%clk 0:02:07]} 26. Kh1 {[%clk 0:01:37]}  Rh2+ {[%clk 0:02:06]} 27. Kg1 {[%clk 0:01:36]}  Qg2# {[%clk 0:02:07]} 0-1


[Site "https://www.chess.com"]

[Event "Titled Tuesday Blitz April 05 Early 2022"]
[White "Kalogridis, Antonios"]
[Black "Kokoszczynski, Jan"]
[WhiteFideId "25833901"]
[BlackFideId "1174460"]
[WhiteElo "1596"]
[BlackElo "2163"]
[Result "1-0"]
[Round "03"]
[TimeControl "180+1"]
[Date "2022.04.05"]
[WhiteClock "0:01:06"]
[BlackClock "0:00:18"]

1. d4 {[%clk 0:03:00]}  Nf6 {[%clk 0:02:59]} 2. c4 {[%clk 0:03:01]}  g6 {[%clk 0:02:59]} 3. Nc3 {[%clk 0:03:01]}  Bg7 {[%clk 0:03:00]} 4. e4 {[%clk 0:03:00]}  O-O {[%clk 0:02:59]} 5. Nge2 {[%clk 0:03:00]}  d6 {[%clk 0:02:57]} 6. f3 {[%clk 0:02:59]}  c5 {[%clk 0:02:32]} 7. Be3 {[%clk 0:02:57]}  cxd4 {[%clk 0:02:30]} 8. Nxd4 {[%clk 0:02:57]}  Nc6 {[%clk 0:02:31]} 9. Be2 {[%clk 0:02:56]}  Bd7 {[%clk 0:02:26]} 10. O-O {[%clk 0:02:56]}  Nxd4 {[%clk 0:02:26]} 11. Bxd4 {[%clk 0:02:55]}  Bc6 {[%clk 0:02:27]} 12. Qd2 {[%clk 0:02:52]}  a5 {[%clk 0:02:27]} 13. b3 {[%clk 0:02:50]}  Nd7 {[%clk 0:02:27]} 14. Rfd1 {[%clk 0:02:48]}  Bxd4+ {[%clk 0:02:26]} 15. Qxd4 {[%clk 0:02:49]}  Qb6 {[%clk 0:02:27]} 16. Kf2 {[%clk 0:02:47]}  Qc5 {[%clk 0:02:25]} 17. Nd5 {[%clk 0:02:39]}  Bxd5 {[%clk 0:02:20]} 18. Qxc5 {[%clk 0:02:37]}  Nxc5 {[%clk 0:02:16]} 19. Rxd5 {[%clk 0:02:37]}  Rfc8 {[%clk 0:02:02]} 20. Rad1 {[%clk 0:02:34]}  Rc6 {[%clk 0:01:45]} 21. Ke3 {[%clk 0:02:28]}  Kg7 {[%clk 0:01:30]} 22. f4 {[%clk 0:02:27]}  h5 {[%clk 0:01:09]} 23. e5 {[%clk 0:02:18]}  dxe5 {[%clk 0:01:08]} 24. Rxe5 {[%clk 0:02:18]}  e6 {[%clk 0:00:54]} 25. Bf3 {[%clk 0:02:18]}  Rc7 {[%clk 0:00:55]} 26. Kf2 {[%clk 0:02:12]}  Kf6 {[%clk 0:00:53]} 27. g3 {[%clk 0:02:07]}  Ke7 {[%clk 0:00:53]} 28. Rdd5 {[%clk 0:01:59]}  Rac8 {[%clk 0:00:34]} 29. Re3 {[%clk 0:01:56]}  a4 {[%clk 0:00:29]} 30. Rd2 {[%clk 0:01:48]}  axb3 {[%clk 0:00:28]} 31. axb3 {[%clk 0:01:47]}  Na6 {[%clk 0:00:28]} 32. Ra2 {[%clk 0:01:44]}  Nc5 {[%clk 0:00:27]} 33. b4 {[%clk 0:01:42]}  Nd7 {[%clk 0:00:26]} 34. c5 {[%clk 0:01:40]}  Nf6 {[%clk 0:00:26]} 35. Ra7 {[%clk 0:01:37]}  Rb8 {[%clk 0:00:25]} 36. h3 {[%clk 0:01:33]}  Kd7 {[%clk 0:00:23]} 37. Rd3+ {[%clk 0:01:30]}  Ke7 {[%clk 0:00:23]} 38. c6 {[%clk 0:01:27]}  Ne8 {[%clk 0:00:22]} 39. Rxb7 {[%clk 0:01:14]}  Rcxb7 {[%clk 0:00:22]} 40. cxb7 {[%clk 0:01:15]}  Nd6 {[%clk 0:00:23]} 41. Ra3 {[%clk 0:01:14]}  Kd7 {[%clk 0:00:22]} 42. Ra8 {[%clk 0:01:14]}  Kc7 {[%clk 0:00:22]} 43. Ke3 {[%clk 0:01:11]}  Nf5+ {[%clk 0:00:18]} 44. Kf2 {[%clk 0:01:11]}  Nd6 {[%clk 0:00:19]} 45. Rxb8 {[%clk 0:01:11]}  Kxb8 {[%clk 0:00:20]} 46. Ke3 {[%clk 0:01:11]}  Nxb7 {[%clk 0:00:20]} 47. Bxb7 {[%clk 0:01:10]}  Kxb7 {[%clk 0:00:20]} 48. Kd4 {[%clk 0:01:10]}  f6 {[%clk 0:00:19]} 49. Kc5 {[%clk 0:01:10]}  Kc7 {[%clk 0:00:19]} 50. h4 {[%clk 0:01:10]}  f5 {[%clk 0:00:15]} 51. Kd4 {[%clk 0:01:07]}  Kd6 {[%clk 0:00:15]} 52. b5 {[%clk 0:01:07]}  e5+ {[%clk 0:00:15]} 53. fxe5+ {[%clk 0:01:07]}  Kd7 {[%clk 0:00:16]} 54. b6 {[%clk 0:01:07]}  g5 {[%clk 0:00:16]} 55. hxg5 {[%clk 0:01:04]}  f4 {[%clk 0:00:16]} 56. gxf4 {[%clk 0:01:05]}  h4 {[%clk 0:00:17]} 57. Ke3 {[%clk 0:01:05]}  h3 {[%clk 0:00:17]} 58. Kf2 {[%clk 0:01:06]}  h2 {[%clk 0:00:18]} 59. Kg2 {[%clk 0:01:06]} 1-0


[Site "https://www.chess.com"]

[Event "Titled Tuesday Blitz April 05 Early 2022"]
[White "Kaminski, Victor"]
[Black "Potapova, Margarita"]
[WhiteFideId "1131630"]
[BlackFideId "14126869"]
[WhiteElo "2181"]
[BlackElo "2216"]
[Result "0-1"]
[Round "03"]
[TimeControl "180+1"]
[Date "2022.04.05"]
[WhiteClock "0:00:01"]
[BlackClock "0:00:15"]

1. e4 {[%clk 0:02:46]}  c5 {[%clk 0:02:59]} 2. Nf3 {[%clk 0:02:46]}  d6 {[%clk 0:03:00]} 3. d4 {[%clk 0:02:45]}  cxd4 {[%clk 0:03:01]} 4. Nxd4 {[%clk 0:02:45]}  Nf6 {[%clk 0:03:01]} 5. f3 {[%clk 0:02:44]}  Nc6 {[%clk 0:03:01]} 6. c4 {[%clk 0:02:42]}  e6 {[%clk 0:03:01]} 7. Nc3 {[%clk 0:02:42]}  Be7 {[%clk 0:03:02]} 8. Be2 {[%clk 0:02:42]}  O-O {[%clk 0:03:02]} 9. O-O {[%clk 0:02:43]}  d5 {[%clk 0:03:03]} 10. exd5 {[%clk 0:02:41]}  exd5 {[%clk 0:03:02]} 11. Nxc6 {[%clk 0:02:41]}  bxc6 {[%clk 0:03:02]} 12. cxd5 {[%clk 0:02:41]}  Nxd5 {[%clk 0:03:03]} 13. Nxd5 {[%clk 0:02:37]}  cxd5 {[%clk 0:03:04]} 14. Be3 {[%clk 0:02:36]}  Be6 {[%clk 0:03:05]} 15. Bd4 {[%clk 0:02:36]}  Bf6 {[%clk 0:03:02]} 16. b3 {[%clk 0:02:33]}  a5 {[%clk 0:03:01]} 17. Bb5 {[%clk 0:02:31]}  Rb8 {[%clk 0:02:55]} 18. a4 {[%clk 0:02:30]}  Qe7 {[%clk 0:02:51]} 19. Qd2 {[%clk 0:02:25]}  Ra8 {[%clk 0:02:22]} 20. Bc6 {[%clk 0:02:14]}  Rab8 {[%clk 0:02:19]} 21. Bb5 {[%clk 0:02:12]}  Ra8 {[%clk 0:02:19]} 22. Rac1 {[%clk 0:02:11]}  Bxd4+ {[%clk 0:01:40]} 23. Qxd4 {[%clk 0:02:12]}  Qg5 {[%clk 0:01:41]} 24. f4 {[%clk 0:02:09]}  Qh5 {[%clk 0:01:35]} 25. Rc5 {[%clk 0:01:41]}  Qg6 {[%clk 0:01:21]} 26. Bd3 {[%clk 0:01:30]}  Bf5 {[%clk 0:01:21]} 27. Rxd5 {[%clk 0:01:25]}  Bxd3 {[%clk 0:01:20]} 28. Qxd3 {[%clk 0:01:26]}  Qb6+ {[%clk 0:01:21]} 29. Kh1 {[%clk 0:01:23]}  h6 {[%clk 0:01:21]} 30. f5 {[%clk 0:01:21]}  Rfe8 {[%clk 0:01:13]} 31. Rb5 {[%clk 0:00:47]}  Qf6 {[%clk 0:01:08]} 32. h3 {[%clk 0:00:43]}  Rad8 {[%clk 0:01:01]} 33. Qf3 {[%clk 0:00:38]}  Rd2 {[%clk 0:00:59]} 34. Rxa5 {[%clk 0:00:24]}  Ree2 {[%clk 0:00:59]} 35. Ra8+ {[%clk 0:00:20]}  Kh7 {[%clk 0:00:59]} 36. Rg1 {[%clk 0:00:20]}  Rf2 {[%clk 0:00:57]} 37. Qg3 {[%clk 0:00:18]}  Rxf5 {[%clk 0:00:55]} 38. Qb8 {[%clk 0:00:14]}  Rf1 {[%clk 0:00:38]} 39. Qg3 {[%clk 0:00:07]}  Rf5 {[%clk 0:00:35]} 40. Kh2 {[%clk 0:00:06]}  Rg5 {[%clk 0:00:34]} 41. Qe3 {[%clk 0:00:04]}  Qd6+ {[%clk 0:00:30]} 42. Kh1 {[%clk 0:00:05]}  Rg6 {[%clk 0:00:24]} 43. Re8 {[%clk 0:00:04]}  Qd5 {[%clk 0:00:18]} 44. Qe4 {[%clk 0:00:02]}  Qd6 {[%clk 0:00:18]} 45. Qe5 {[%clk 0:00:02]}  Qd3 {[%clk 0:00:16]} 46. Qh2 {[%clk 0:00:01]}  Rg3 {[%clk 0:00:15]} 0-1


[Site "https://www.chess.com"]

[Event "Titled Tuesday Blitz April 05 Early 2022"]
[White "Kobalia, Mikhail"]
[Black "Fikiet, Alex"]
[WhiteFideId "4119150"]
[BlackFideId "2052717"]
[WhiteElo "2667"]
[BlackElo "2441"]
[Result "*"]
[Round "03"]
[TimeControl "180+1"]
[Date "2022.04.05"]
[WhiteClock "0:02:21"]
[BlackClock "0:01:19"]

1. e4 {[%clk 0:02:55]}  e5 {[%clk 0:02:56]} 2. Nf3 {[%clk 0:02:54]}  Nc6 {[%clk 0:02:55]} 3. Bb5 {[%clk 0:02:54]}  a6 {[%clk 0:02:55]} 4. Ba4 {[%clk 0:02:54]}  d6 {[%clk 0:02:54]} 5. O-O {[%clk 0:02:53]}  Bd7 {[%clk 0:02:54]} 6. Re1 {[%clk 0:02:53]}  g6 {[%clk 0:02:53]} 7. d4 {[%clk 0:02:52]}  Bg7 {[%clk 0:02:51]} 8. dxe5 {[%clk 0:02:46]}  Nxe5 {[%clk 0:02:48]} 9. Bxd7+ {[%clk 0:02:45]}  Qxd7 {[%clk 0:02:44]} 10. Nxe5 {[%clk 0:02:44]}  Bxe5 {[%clk 0:02:38]} 11. Nd2 {[%clk 0:02:43]}  Ne7 {[%clk 0:02:37]} 12. Nf3 {[%clk 0:02:42]}  Bg7 {[%clk 0:02:36]} 13. e5 {[%clk 0:02:35]}  O-O {[%clk 0:02:28]} 14. exd6 {[%clk 0:02:34]}  cxd6 {[%clk 0:02:23]} 15. c3 {[%clk 0:02:34]}  b5 {[%clk 0:02:16]} 16. Be3 {[%clk 0:02:30]}  Nc6 {[%clk 0:02:13]} 17. Qd5 {[%clk 0:02:28]}  Ne7 {[%clk 0:01:58]} 18. Qd3 {[%clk 0:02:27]}  Nf5 {[%clk 0:01:53]} 19. Rad1 {[%clk 0:02:25]}  Rfd8 {[%clk 0:01:41]} 20. Bf4 {[%clk 0:02:25]}  Rac8 {[%clk 0:01:33]} 21. h3 {[%clk 0:02:24]}  Rc4 {[%clk 0:01:30]} 22. Bg5 {[%clk 0:02:24]}  Rdc8 {[%clk 0:01:24]} 23. g4 {[%clk 0:02:24]}  Nh6 {[%clk 0:01:23]} 24. Qxd6 {[%clk 0:02:21]}  Qb7 {[%clk 0:01:19]} *


[Site "https://www.chess.com"]